Department Family,Entity,Date,Expenses Type,Expense Area,Supplier,Transaction Number, Total 
Department of Health,The Christie NHS Foundation Trust,21/03/2018,Drugs,Drugs,ALCURA UK LIMITED,0000578489,"-35,461.87 "
Department of Health,The Christie NHS Foundation Trust,22/03/2018,Drugs,Drugs,ALCURA UK LIMITED,0000578493," 84,153.56 "
Department of Health,The Christie NHS Foundation Trust,28/03/2018,Drugs,Drugs,ALCURA UK LIMITED,0000578951," 93,396.85 "
Department of Health,The Christie NHS Foundation Trust,15/03/2018,PET Scans - Dec-17,Christie Medical Physics,ALLIANCE MEDICAL LTD,0000571884," 104,095.00 "
Department of Health,The Christie NHS Foundation Trust,22/03/2018,PET Scans - Feb-18,Christie Medical Physics,ALLIANCE MEDICAL LTD,0000577136," 134,070.00 "
Department of Health,The Christie NHS Foundation Trust,08/03/2018,Drugs,Christie Medical Physics,ALLIANCE MEDICAL RADIOPHARMACY LIMITED,0000575052," 37,947.72 "
Department of Health,The Christie NHS Foundation Trust,01/03/2018,Drugs,Drugs,BAXTER HEALTHCARE LTD,0000574559," 438,455.50 "
Department of Health,The Christie NHS Foundation Trust,01/03/2018,Drugs,Drugs,BAXTER HEALTHCARE LTD,0000577218," 336,207.60 "
Department of Health,The Christie NHS Foundation Trust,08/03/2018,Drugs,Drugs,BAXTER HEALTHCARE LTD,0000575566," 386,637.84 "
Department of Health,The Christie NHS Foundation Trust,15/03/2018,Drugs,Drugs,BAXTER HEALTHCARE LTD,0000576586," 421,291.79 "
Department of Health,The Christie NHS Foundation Trust,15/03/2018,Drugs,Drugs,BAXTER HEALTHCARE LTD,0000577292," 37,282.18 "
Department of Health,The Christie NHS Foundation Trust,15/03/2018,Drugs,Drugs,BAXTER HEALTHCARE LTD,0000577298," 60,732.00 "
Department of Health,The Christie NHS Foundation Trust,22/03/2018,Drugs,Drugs,BAXTER HEALTHCARE LTD,0000578021,"-43,500.00 "
Department of Health,The Christie NHS Foundation Trust,22/03/2018,Drugs,Drugs,BAXTER HEALTHCARE LTD,0000576585," 491,336.63 "
Department of Health,The Christie NHS Foundation Trust,22/03/2018,Drugs,Drugs,BAXTER HEALTHCARE LTD,0000577706," 324,756.23 "
Department of Health,The Christie NHS Foundation Trust,28/03/2018,Drugs,Drugs,BAXTER HEALTHCARE LTD,0000577710," 385,411.48 "
Department of Health,The Christie NHS Foundation Trust,15/03/2018,Drugs,Drugs,BOLTON NHS FOUNDATION TRUST,0000568684," 30,732.32 "
Department of Health,The Christie NHS Foundation Trust,15/03/2018,Drugs,Drugs,BOLTON NHS FOUNDATION TRUST,0000570874," 33,922.67 "
Department of Health,The Christie NHS Foundation Trust,21/03/2018,Drugs,Drugs,BOLTON NHS FOUNDATION TRUST,0000574417," 34,128.94 "
Department of Health,The Christie NHS Foundation Trust,01/03/2018,Education & Training,Other Income Levies and Grants,CENTRAL MCR  UNIV HOSP NHS FOUNDATION TR,0000564263," 60,461.00 "
Department of Health,The Christie NHS Foundation Trust,15/03/2018,PET Scans - Jan 18,Christie Medical Physics,CENTRAL MCR  UNIV HOSP NHS FOUNDATION TR,0000575878," 109,538.00 "
Department of Health,The Christie NHS Foundation Trust,06/03/2018,Medical Equipment Maintenance Contract,Cancer Centre Services,CPP FACILITIES LLP,0000575009," 189,898.48 "
Department of Health,The Christie NHS Foundation Trust,06/03/2018,Medical Equipment Maintenance Contract,Cancer Centre Services,CPP FACILITIES LLP,0000576170," 172,856.77 "
Department of Health,The Christie NHS Foundation Trust,15/03/2018,Medical Equipment Maintenance Contract,Cancer Centre Services,CPP FACILITIES LLP,0000576169," 197,417.61 "
Department of Health,The Christie NHS Foundation Trust,26/03/2018,Medical Equipment,The Christie NHS FT Balance,DRAEGER MEDICAL UK LIMITED,0000000960," 117,028.48 "
Department of Health,The Christie NHS Foundation Trust,08/03/2018,Medical Equipment,Capital,ELEKTA  LTD,0000575791," 121,105.75 "
Department of Health,The Christie NHS Foundation Trust,22/03/2018,Medical Equipment,Capital,ELEKTA  LTD,0000577021," 37,929.28 "
Department of Health,The Christie NHS Foundation Trust,01/03/2018,Childcare Voucher - Feb-18,Human Resources,FIDELITI LIMITED,0000576025," 32,596.84 "
Department of Health,The Christie NHS Foundation Trust,08/03/2018,Computer Equipment,Finance & Business Development,HP INC.UK LIMITED,0000575529," 28,372.32 "
Department of Health,The Christie NHS Foundation Trust,08/03/2018,Software Licences,Capital,IDEAGEN SOFTWARE LIMITED,0000575622," 45,849.42 "
Department of Health,The Christie NHS Foundation Trust,01/03/2018,Proton Beam Development (PBT),Capital,INTERSERVE CONSTRUCTION LTD,0000576474," 1,715,349.15 "
Department of Health,The Christie NHS Foundation Trust,22/03/2018,Proton Beam Development (PBT),Capital,INTERSERVE CONSTRUCTION LTD,0000578331," 1,740,563.58 "
Department of Health,The Christie NHS Foundation Trust,28/03/2018,Medical Equipment,Capital,LABLOGIC,0000579091," 68,388.24 "
Department of Health,The Christie NHS Foundation Trust,08/03/2018,Drugs,Drugs,LLOYDSPHARMACY CLINICAL HOMECARE,0000576601," 27,487.00 "
Department of Health,The Christie NHS Foundation Trust,22/03/2018,Building Works,Estates & Facilities,MC CONSTRUCTION COMPANY LIMITED,0000577588," 36,585.24 "
Department of Health,The Christie NHS Foundation Trust,22/03/2018,Building Works,Capital,MEDWAY HEATING BOLTON LTD,0000576573," 86,352.60 "
Department of Health,The Christie NHS Foundation Trust,01/03/2018,Medical Equipment,Cancer Centre Services,MERCIAN SURGICAL SUPPLY CO LTD,0000575417," 33,442.20 "
Department of Health,The Christie NHS Foundation Trust,15/03/2018,Macmillan Service Aug-17,Cancer Networked Services,MID CHESHIRE HOSPITALS NHS FT,0000560239," 45,630.25 "
Department of Health,The Christie NHS Foundation Trust,15/03/2018,Macmillan Service Sep-17,Cancer Networked Services,MID CHESHIRE HOSPITALS NHS FT,0000562066," 45,630.25 "
Department of Health,The Christie NHS Foundation Trust,15/03/2018,Macmillan Service Oct-17,Cancer Networked Services,MID CHESHIRE HOSPITALS NHS FT,0000564829," 45,630.25 "
Department of Health,The Christie NHS Foundation Trust,15/03/2018,Macmillan Service Nov-17,Cancer Networked Services,MID CHESHIRE HOSPITALS NHS FT,0000568266," 45,630.25 "
Department of Health,The Christie NHS Foundation Trust,15/03/2018,Macmillan Service Dec-17,Cancer Networked Services,MID CHESHIRE HOSPITALS NHS FT,0000569861," 45,630.25 "
Department of Health,The Christie NHS Foundation Trust,15/03/2018,Macmillan Service Jan-18,Cancer Networked Services,MID CHESHIRE HOSPITALS NHS FT,0000573052," 45,630.25 "
Department of Health,The Christie NHS Foundation Trust,15/03/2018,Macmillan Service Feb-18,Cancer Networked Services,MID CHESHIRE HOSPITALS NHS FT,0000575728," 45,630.25 "
Department of Health,The Christie NHS Foundation Trust,21/03/2018,Macmillan Service Mar-18,Cancer Networked Services,MID CHESHIRE HOSPITALS NHS FT,0000577516," 45,630.25 "
Department of Health,The Christie NHS Foundation Trust,15/03/2018,Blood Products,Cancer Networked Services,NHS BLOOD AND TRANSPLANT,0000578026," 178,854.08 "
Department of Health,The Christie NHS Foundation Trust,01/03/2018,Stock for all Wards & Departments,All Wards and Departments,NHS SUPPLY CHAIN,0000576314," 36,584.13 "
Department of Health,The Christie NHS Foundation Trust,08/03/2018,Stock for all Wards & Departments,All Wards and Departments,NHS SUPPLY CHAIN,0000576885," 32,775.51 "
Department of Health,The Christie NHS Foundation Trust,15/03/2018,Stock for all Wards & Departments,All Wards and Departments,NHS SUPPLY CHAIN,0000577445," 42,192.78 "
Department of Health,The Christie NHS Foundation Trust,22/03/2018,Stock for all Wards & Departments,All Wards and Departments,NHS SUPPLY CHAIN,0000578148," 37,054.16 "
Department of Health,The Christie NHS Foundation Trust,22/03/2018,Medical Equipment,Capital,NHS SUPPLY CHAIN,0000576312," 745,599.00 "
Department of Health,The Christie NHS Foundation Trust,22/03/2018,Medical Equipment,Cancer Centre Services,NHS SUPPLY CHAIN,0000577245," 31,201.83 "
Department of Health,The Christie NHS Foundation Trust,28/03/2018,Medical Equipment,Cancer Centre Services,NHS SUPPLY CHAIN,0000577233," 52,588.69 "
Department of Health,The Christie NHS Foundation Trust,28/03/2018,Stock for all Wards & Departments,All Wards and Departments,NHS SUPPLY CHAIN,0000578983," 38,191.39 "
Department of Health,The Christie NHS Foundation Trust,01/03/2018,Medical Equipment,Capital,ONCOLOGY IMAGING SYSTEMS LTD,0000575883," 67,800.00 "
Department of Health,The Christie NHS Foundation Trust,08/03/2018,Proton Beam Development (PBT),Capital,ONCOLOGY SYSTEMS LIMITED,0000575718," 313,702.51 "
Department of Health,The Christie NHS Foundation Trust,08/03/2018,Project Costs,Capital,PHILIPS HEALTHCARE,0000575589," 25,697.71 "
Department of Health,The Christie NHS Foundation Trust,01/03/2018,Cancer Vanguard,GM Cancer Vanguard,PROGRESS HEALTH PARTNERSHIPS LTD,0000575194," 37,456.00 "
Department of Health,The Christie NHS Foundation Trust,01/03/2018,Audit Services,Finance & Business Development,ROYAL LIVERPOOL & BROADGREEN NHS TRUST,0000574822," 25,956.75 "
Department of Health,The Christie NHS Foundation Trust,21/03/2018,Utilities Oct-17 to Dec-17,Estates & Facilities,SALFORD ROYAL HOSP NHS FT,0000577518," 27,052.34 "
Department of Health,The Christie NHS Foundation Trust,01/03/2018,Medical Equipment,Capital,SIEMENS HEALTHCARE LIMITED,0000575082," 449,730.00 "
Department of Health,The Christie NHS Foundation Trust,09/03/2018,Proton Beam Development (PBT),Capital,SIGMAPHI,0000571562," 111,506.40 "
Department of Health,The Christie NHS Foundation Trust,22/03/2018,Software Licences,Programme Management Office,SOFTCAT PLC,0000576770," 48,759.00 "
Department of Health,The Christie NHS Foundation Trust,01/03/2018,QCNW ENVIRONMENTAL MONITORING,Cancer Centre Services,STOCKPORT NHS FOUNDATION TRUST,0000573101," 44,317.96 "
Department of Health,The Christie NHS Foundation Trust,15/03/2018,Chemotherapy SLA Apr-17,Cancer Networked Services,STOCKPORT NHS FOUNDATION TRUST,0000557006," 27,218.92 "
Department of Health,The Christie NHS Foundation Trust,15/03/2018,Chemotherapy SLA May-17,Cancer Networked Services,STOCKPORT NHS FOUNDATION TRUST,0000557007," 27,218.92 "
Department of Health,The Christie NHS Foundation Trust,15/03/2018,Chemotherapy SLA Jun-17,Cancer Networked Services,STOCKPORT NHS FOUNDATION TRUST,0000557008," 27,218.92 "
Department of Health,The Christie NHS Foundation Trust,15/03/2018,Chemotherapy SLA Jul-17,Cancer Networked Services,STOCKPORT NHS FOUNDATION TRUST,0000558671," 27,218.92 "
Department of Health,The Christie NHS Foundation Trust,15/03/2018,Chemotherapy SLA Aug-17,Cancer Networked Services,STOCKPORT NHS FOUNDATION TRUST,0000561593," 27,218.92 "
Department of Health,The Christie NHS Foundation Trust,15/03/2018,Chemotherapy SLA Sept-17,Cancer Networked Services,STOCKPORT NHS FOUNDATION TRUST,0000563688," 27,218.92 "
Department of Health,The Christie NHS Foundation Trust,15/03/2018,Chemotherapy SLA Oct-17,Cancer Networked Services,STOCKPORT NHS FOUNDATION TRUST,0000566626," 27,218.92 "
Department of Health,The Christie NHS Foundation Trust,15/03/2018,Chemotherapy SLA Nov-17,Cancer Networked Services,STOCKPORT NHS FOUNDATION TRUST,0000569225," 27,218.92 "
Department of Health,The Christie NHS Foundation Trust,15/03/2018,Chemotherapy SLA Dec-17 to Mar-18,Cancer Networked Services,STOCKPORT NHS FOUNDATION TRUST,0000575887," 108,875.68 "
Department of Health,The Christie NHS Foundation Trust,21/03/2018,Chemotherapy SLA Q4 2018,Cancer Networked Services,STOCKPORT NHS FOUNDATION TRUST,0000548471," 124,300.00 "
Department of Health,The Christie NHS Foundation Trust,01/03/2018,Drugs,Drugs,THE CHRISTIE CLINIC (HCA),0000560402," 36,594.00 "
Department of Health,The Christie NHS Foundation Trust,01/03/2018,Drugs,Drugs,THE CHRISTIE CLINIC (HCA),0000563462," 41,218.00 "
Department of Health,The Christie NHS Foundation Trust,01/03/2018,Drugs,Drugs,THE CHRISTIE CLINIC (HCA),0000550462," 33,480.00 "
Department of Health,The Christie NHS Foundation Trust,01/03/2018,Drugs,Drugs,THE CHRISTIE CLINIC (HCA),0000555271," 35,593.00 "
Department of Health,The Christie NHS Foundation Trust,01/03/2018,Drugs,Drugs,THE CHRISTIE CLINIC (HCA),0000557747," 35,903.00 "
Department of Health,The Christie NHS Foundation Trust,15/03/2018,Drugs,Drugs,THE CHRISTIE CLINIC (HCA),0000552713," 32,040.00 "
Department of Health,The Christie NHS Foundation Trust,15/03/2018,Drugs,Drugs,THE CHRISTIE CLINIC (HCA),0000571956," 33,525.00 "
Department of Health,The Christie NHS Foundation Trust,15/03/2018,Drugs,Drugs,THE CHRISTIE CLINIC (HCA),0000575428," 34,920.00 "
Department of Health,The Christie NHS Foundation Trust,22/03/2018,Drugs,Drugs,THE CHRISTIE CLINIC (HCA),0000568135," 34,332.00 "
Department of Health,The Christie NHS Foundation Trust,06/03/2018,Patient Testing Service ,Cancer Centre Services,THE CHRISTIE PATHOLOGY PARTNERSHIP LLP,0000576178," 415,409.05 "
Department of Health,The Christie NHS Foundation Trust,06/03/2018,Patient Testing Service ,Cancer Centre Services,THE CHRISTIE PATHOLOGY PARTNERSHIP LLP,0000575011," 399,587.20 "
Department of Health,The Christie NHS Foundation Trust,28/03/2018,Patient Testing Service ,Cancer Centre Services,THE CHRISTIE PATHOLOGY PARTNERSHIP LLP,0000577375," 363,727.73 "
Department of Health,The Christie NHS Foundation Trust,28/03/2018,Software Licences,Finance & Business Development,TRUST MARQUE SOLUTIONS LTD,0000578827," 62,071.08 "
Department of Health,The Christie NHS Foundation Trust,15/03/2018,Critical Care - Feb-18,Cancer Centre Services,UNI HOSP OF SOUTH MANCHESTER NHS FT,0000576792," 29,638.25 "
Department of Health,The Christie NHS Foundation Trust,15/03/2018,Anaesthetics - Feb-18,Cancer Centre Services,UNI HOSP OF SOUTH MANCHESTER NHS FT,0000576985," 27,148.17 "
Department of Health,The Christie NHS Foundation Trust,08/03/2018,Research Project,Research & Development,UNIVERSITY OF MANCHESTER,0000575458," 29,983.00 "
Department of Health,The Christie NHS Foundation Trust,15/03/2018,Research Project,Research & Development,UNIVERSITY OF MANCHESTER,0000576470," 41,136.00 "
Department of Health,The Christie NHS Foundation Trust,22/03/2018,Proton Beam Development (PBT),Capital,VARIAN MEDICAL SYSTEMS UK LTD,0000574817," 377,383.18 "
Department of Health,The Christie NHS Foundation Trust,22/03/2018,Proton Beam Development (PBT),Capital,VARIAN MEDICAL SYSTEMS UK LTD,0000577014," 325,570.00 "
Department of Health,The Christie NHS Foundation Trust,15/03/2018,Energy Contract - Dec-17,Estates & Facilities,VEOLIA ENERGY &UTILITY SERVICES UK PLC,0000572365," 240,948.07 "
Department of Health,The Christie NHS Foundation Trust,15/03/2018,Energy Contract - Jan-18,Estates & Facilities,VEOLIA ENERGY &UTILITY SERVICES UK PLC,0000576223," 268,688.27 "
Department of Health,The Christie NHS Foundation Trust,28/03/2018,Energy Contract - Feb-18,Estates & Facilities,VEOLIA ENERGY &UTILITY SERVICES UK PLC,0000578218," 225,436.56 "
Department of Health,The Christie NHS Foundation Trust,08/03/2018,Cancer Vanguard,GM Cancer Vanguard,VOLUNTARY SECTOR NORTH WEST,0000576699," 46,666.67 "
Department of Health,The Christie NHS Foundation Trust,01/03/2018,Christie @ Wigan - Feb-18,Cancer Networked Services,WRIGHTINGTON WIGAN AND LEIGH NHS FT,0000575672," 231,448.00 "
Department of Health,The Christie NHS Foundation Trust,21/03/2018,Christie @ Wigan - Mar-18,Cancer Networked Services,WRIGHTINGTON WIGAN AND LEIGH NHS FT,0000577483," 231,448.00 "
